bitfinex-derivatives/quotes_BTCF0:USTF0_20241116
["timestamp","ask_amount","ask_price","bid_price","bid_amount"]
[1731719846898,0.09564,91391.0,91384.0,0.3608]
[1731719847103,0.0301,91397.0,91385.0,0.12429241]
[1731719847595,0.0301,91397.0,91386.0,0.00487429]
[1731719847792,0.0301,91397.0,91385.0,0.12429241]
[1731719849291,0.09564,91398.0,91386.0,0.00484865]
[1731719849497,0.09564,91398.0,91385.0,0.12429241]
[1731719849800,0.09564,91398.0,91386.0,0.02194591]
[1731719849996,0.09564,91398.0,91387.0,0.02194591]
[1731719850203,0.09564,91398.0,91388.0,0.02194591]
[1731719850395,0.09564,91398.0,91389.0,0.02194591]
[1731719850594,0.1,91400.0,91397.0,0.3608]
[1731719853894,0.1,91400.0,91391.0,0.03793697]
[1731719854098,0.1,91400.0,91389.0,0.0051]
[1731719854600,0.12429241,91394.0,91389.0,0.0051]
[1731719854790,0.12429241,91394.0,91384.0,0.3608]
[1731719854998,0.12429241,91394.0,91384.0,0.39994064]
[1731719855597,0.1,91400.0,91384.0,0.39994064]
[1731719856200,0.13048509,91397.0,91384.0,0.39994064]
[1731719857402,0.1,91400.0,91384.0,0.39994064]
[1731719857403,0.13048509,91398.0,91384.0,0.39994064]
[1731719857606,0.13048509,91397.0,91384.0,0.39994064]
[1731719858403,0.13048509,91398.0,91384.0,0.39994064]
[1731719858619,0.13048509,91398.0,91384.0,0.03914064]
[1731719858906,0.3608,91392.0,91382.0,0.0051]
[1731719860507,0.12429241,91385.0,91382.0,0.0051]
[1731719860704,0.12429241,91385.0,91377.0,0.3608]
[1731719860705,0.15814,91384.0,91377.0,0.3608]
[1731719862418,0.3608,91381.0,91376.0,0.00011509]
[1731719862908,0.3608,91381.0,91376.0,2.027e-05]
[1731719862909,0.00013016,91380.0,91376.0,2.027e-05]
[1731719863104,0.13061525,91380.0,91376.0,2.027e-05]
[1731719864300,0.13048509,91378.0,91376.0,2.027e-05]
[1731719864503,0.00013016,91380.0,91376.0,2.027e-05]
[1731719865706,0.09368,91379.0,91376.0,2.027e-05]
[1731719867609,0.3608,91377.0,91376.0,2.027e-05]
[1731719867812,0.68912,91377.0,91376.0,2.027e-05]
[1731719868124,0.81341241,91377.0,91376.0,2.027e-05]
[1731719869306,0.09368,91377.0,91376.0,2.027e-05]
[1731719871216,0.00013016,91380.0,91376.0,2.027e-05]
[1731719871425,0.09368,91379.0,91376.0,2.027e-05]
[1731719871610,0.09368,91378.0,91376.0,2.027e-05]
[1731719871811,0.09368,91378.0,91377.0,0.01710011]
[1731719872110,0.00013016,91380.0,91377.0,0.01710011]
[1731719872311,0.00013016,91380.0,91376.0,2.027e-05]
[1731719872312,0.09381016,91380.0,91378.0,0.01710011]
[1731719872617,0.00013016,91380.0,91379.0,0.01710011]
[1731719873415,0.00013016,91380.0,91379.0,0.01709931]
[1731719874306,0.15639241,91403.0,91379.0,0.01709931]
[1731719874307,0.3608,91404.0,91379.0,0.48274712]
[1731719874519,0.0051,91406.0,91396.0,0.25960032]
[1731719874709,0.0051,91406.0,91392.0,0.3608]
[1731719874710,0.3608,91414.0,91397.0,0.25960032]
[1731719874909,0.09368,91407.0,91398.0,0.25951605]
[1731719875106,0.09368,91407.0,91393.0,0.3245004]
[1731719875310,0.03948086,91406.0,91394.0,0.01293426]
[1731719875618,0.09368,91407.0,91394.0,0.01293426]
[1731719875619,0.09368,91407.0,91395.0,0.01293426]
[1731719875819,0.09368,91407.0,91396.0,0.01293426]
[1731719876123,0.09368,91407.0,91393.0,0.3245004]
[1731719876321,0.09368,91407.0,91392.0,0.6853004]
[1731719876621,0.09368,91407.0,91393.0,0.33741282]
[1731719876805,0.09368,91407.0,91394.0,0.01291242]
[1731719877006,0.24858482,91395.0,91388.0,0.3296004]
[1731719877218,0.24858482,91395.0,91376.0,2.027e-05]
[1731719877219,0.09368,91394.0,91392.0,0.19465034]
[1731719877517,0.12429241,91393.0,91384.0,0.0051]
[1731719877717,0.12429241,91393.0,91379.0,0.0051]
[1731719877718,0.3608,91385.0,91379.0,0.0051]
[1731719877913,0.3608,91384.0,91377.0,0.25949851]
[1731719878316,0.3608,91384.0,91376.0,2.027e-05]
[1731719879411,0.19585893,91381.0,91376.0,2.027e-05]
[1731719879615,0.12429241,91377.0,91376.0,2.027e-05]
[1731719879817,0.17749345,91377.0,91376.0,2.027e-05]
[1731719880420,0.12429241,91377.0,91376.0,2.027e-05]
[1731719880722,0.17749426,91377.0,91376.0,2.027e-05]
[1731719881422,0.37335319,91377.0,91376.0,2.027e-05]
[1731719882112,0.17749426,91377.0,91376.0,2.027e-05]
[1731719882321,0.12429241,91377.0,91376.0,2.027e-05]
[1731719882618,0.17749426,91377.0,91376.0,2.027e-05]
[1731719883021,0.17749426,91377.0,91367.0,0.0051]
[1731719883022,1.5699098,91377.0,91367.0,0.0051]
[1731719883219,0.48509241,91368.0,91367.0,0.0051]
[1731719883420,0.48509241,91368.0,91358.0,0.0051]
[1731719883421,0.76739742,91368.0,91358.0,0.0051]
[1731719883624,0.3608,91359.0,91354.0,0.031]
[1731719883823,0.16353825,91357.0,91354.0,0.031]
[1731719885327,0.09368,91356.0,91354.0,0.031]
[1731719885517,0.09368,91356.0,91346.0,0.0051]
[1731719885518,0.12429241,91355.0,91346.0,0.0051]
[1731719885717,0.12429241,91348.0,91347.0,0.01710611]
[1731719885920,0.25509534,91348.0,91343.0,0.0051]
[1731719886229,0.16353825,91346.0,91342.0,0.0324]
[1731719886620,0.12429241,91348.0,91342.0,0.0324]
[1731719887522,0.12429241,91348.0,91337.0,0.0051]
[1731719890928,0.3608,91339.0,91337.0,0.0051]
[1731719891124,0.09368,91338.0,91334.0,9.257e-05]
[1731719894634,0.13180181,91338.0,91334.0,9.257e-05]
[1731719900027,0.16300181,91338.0,91334.0,9.257e-05]
[1731719902431,0.32844,91337.0,91334.0,9.257e-05]
[1731719902634,0.32844,91337.0,91330.0,0.0051]
[1731719902635,0.3608,91336.0,91330.0,0.0051]
[1731719902825,0.12429241,91331.0,91325.0,0.0051]
[1731719903024,0.48509241,91326.0,91318.0,0.0051]
[1731719903227,0.09188,91325.0,91318.0,0.0051]
[1731719903834,0.00011284,91324.0,91318.0,0.0051]
[1731719904033,0.00011284,91324.0,91316.0,0.0317]
[1731719905636,0.00011284,91324.0,91317.0,0.01711174]
[1731719905838,0.00011284,91324.0,91318.0,0.01711174]
[1731719906041,0.00011284,91324.0,91316.0,0.0317]
[1731719906237,0.12429241,91319.0,91317.0,0.01711174]
[1731719906439,0.12429241,91319.0,91318.0,0.01711174]
[1731719907645,0.12429241,91319.0,91318.0,0.01711175]
[1731719907848,0.03948867,91324.0,91318.0,0.01711175]
[1731719908042,0.12429241,91319.0,91318.0,0.01711175]
[1731719908248,0.12429241,91319.0,91318.0,0.03422341]
[1731719908739,0.12429241,91319.0,91318.0,0.06160408]
[1731719908939,0.12429241,91319.0,91318.0,0.03422341]
[1731719909343,0.12429241,91319.0,91318.0,0.06160391]
[1731719910132,0.48509241,91319.0,91318.0,0.04449216]
[1731719911247,0.57697241,91319.0,91318.0,0.04449216]
[1731719911546,0.57697241,91319.0,91318.0,0.01711166]
[1731719911749,0.57697241,91319.0,91318.0,0.01711281]
[1731719912340,0.57697241,91319.0,91316.0,0.0317]
[1731719913934,0.3608,91317.0,91316.0,0.0317]
[1731719914650,0.34696427,91319.0,91316.0,0.0317]
[1731719915146,0.3608,91317.0,91316.0,0.0317]
[1731719915351,0.49159186,91317.0,91316.0,0.04881281]
[1731719916152,0.3608,91317.0,91316.0,0.04881281]
[1731719916455,0.49181981,91317.0,91316.0,0.04881281]
[1731719916656,0.3608,91317.0,91316.0,0.04881281]
[1731719918655,0.3608,91317.0,91316.0,0.0317]
[1731719918858,0.3608,91317.0,91316.0,0.04881281]
[1731719920569,0.3608,91317.0,91316.0,0.07619331]
[1731719922266,0.3608,91317.0,91316.0,0.33569182]
[1731719922972,0.3608,91317.0,91316.0,0.07619331]
[1731719923462,0.3608,91317.0,91309.0,0.3245004]
[1731719923463,0.32852,91316.0,91303.0,0.001]
[1731719923662,0.32852,91316.0,91288.0,0.03964107]
[1731719923663,0.48509241,91304.0,91288.0,0.03964107]
[1731719923867,0.3608,91291.0,91281.0,0.3245004]
[1731719924054,0.45012,91291.0,91276.0,0.0308]
[1731719924259,0.12429241,91282.0,91276.0,0.0308]
[1731719924765,0.28783066,91282.0,91276.0,0.0308]
[1731719924959,0.12429241,91282.0,91276.0,0.0308]
[1731719926761,0.12429241,91282.0,91260.0,0.0308]
[1731719926967,0.12429241,91271.0,91261.0,0.0312]
[1731719927165,0.08936,91270.0,91261.0,0.0312]
[1731719927757,0.08936,91270.0,91264.0,0.03860579]
[1731719928861,0.08936,91270.0,91261.0,0.0312]
[1731719929068,0.3608,91265.0,91261.0,0.0312]
[1731719934465,0.08936,91264.0,91261.0,0.0312]
[1731719935467,8.606e-05,91269.0,91262.0,0.01712164]
[1731719935775,8.606e-05,91269.0,91263.0,0.02197354]
[1731719935981,8.606e-05,91269.0,91264.0,0.01712164]
[1731719936279,8.606e-05,91269.0,91265.0,0.01712107]
[1731719936478,8.606e-05,91269.0,91268.0,0.48509241]
[1731719936674,8.606e-05,91269.0,91268.0,0.50707661]
[1731719936980,8.606e-05,91269.0,91268.0,0.86318866]
[1731719937373,0.08936,91282.0,91268.0,0.84370925]
[1731719937570,0.08936,91282.0,91269.0,0.02989684]
[1731719937877,0.08936,91282.0,91270.0,0.05728882]
[1731719938079,0.08936,91282.0,91271.0,0.05728882]
[1731719938375,0.00011509,91281.0,91272.0,0.05728882]
[1731719938583,0.00011509,91281.0,91273.0,0.02989684]
[1731719938767,0.00011509,91281.0,91274.0,0.02989684]
[1731719939075,0.00011509,91281.0,91275.0,0.02989684]
[1731719939271,0.00011509,91281.0,91276.0,0.01712048]
[1731719939580,0.00011509,91281.0,91277.0,0.01712048]
[1731719939878,0.00011509,91281.0,91278.0,0.05031865]
[1731719940178,0.00011509,91281.0,91279.0,0.01711865]
[1731719940369,0.00011509,91281.0,91278.0,0.0332]
[1731719940582,0.00011509,91281.0,91280.0,0.3608]
[1731719940886,0.00011509,91281.0,91280.0,0.39081193]
[1731719941290,0.00011509,91281.0,91280.0,0.41819923]
[1731719941781,0.00011509,91281.0,91280.0,0.39081193]
[1731719942281,0.00011509,91281.0,91269.0,0.07068957]
[1731719942483,0.08947509,91281.0,91270.0,0.02199029]
[1731719942790,0.08947509,91281.0,91271.0,0.02199029]
[1731719942988,0.08947509,91281.0,91269.0,0.07068957]
[1731719943288,0.08947509,91281.0,91270.0,0.02199147]
[1731719943483,0.08947509,91281.0,91269.0,0.07068957]
[1731719943484,0.08947509,91281.0,91271.0,0.02199147]
[1731719943690,0.08947509,91281.0,91272.0,0.00487194]
[1731719943876,0.08947509,91281.0,91269.0,0.07068957]
[1731719944083,0.08947509,91281.0,91270.0,0.02198552]
[1731719944278,0.08947509,91281.0,91271.0,0.02198552]
[1731719944587,0.08947509,91281.0,91272.0,0.02198552]
[1731719944786,0.08947509,91281.0,91273.0,0.01711945]
[1731719944994,0.08947509,91281.0,91264.0,0.0617]
[1731719945186,0.08947509,91281.0,91274.0,0.01711937]
[1731719945384,0.08947509,91281.0,91275.0,0.01711937]
[1731719945584,0.08947509,91281.0,91276.0,0.01711937]
[1731719945788,0.08947509,91281.0,91277.0,0.01711937]
[1731719945988,0.08947509,91281.0,91278.0,0.01711937]
[1731719946198,0.08947509,91281.0,91268.0,0.40033995]
[1731719946382,0.08947509,91281.0,91269.0,0.02198262]
[1731719946688,0.08947509,91281.0,91272.0,0.3608]
[1731719946892,0.08947509,91281.0,91273.0,0.01711932]
[1731719947087,0.08947509,91281.0,91274.0,0.01711932]
[1731719947282,0.08947509,91281.0,91272.0,0.3608]
[1731719947283,0.08947509,91281.0,91275.0,0.02994725]
[1731719947483,0.08947509,91281.0,91280.0,0.3608]
[1731719947679,0.08947509,91281.0,91280.0,0.01711932]
[1731719948791,0.08947509,91281.0,91272.0,0.3608]
[1731719949184,0.08947509,91281.0,91273.0,0.05744169]
[1731719949390,0.08947509,91281.0,91274.0,0.05744169]
[1731719949583,0.08947509,91281.0,91272.0,0.3608]
[1731719949584,0.08947509,91281.0,91275.0,0.05744169]
[1731719949786,0.08947509,91281.0,91276.0,0.03005202]
[1731719950082,0.08947509,91281.0,91272.0,0.3608]
[1731719950083,0.08947509,91281.0,91277.0,0.01711854]
[1731719950392,0.08947509,91281.0,91278.0,0.01711854]
[1731719950594,0.08947509,91281.0,91279.0,0.01711854]
[1731719950887,0.08947509,91281.0,91280.0,0.0171185]
[1731719951191,0.08947509,91281.0,91272.0,0.3608]
[1731719951492,0.08947509,91281.0,91273.0,0.03006327]
[1731719951682,0.08947509,91281.0,91274.0,0.03006327]
[1731719951883,0.08947509,91281.0,91275.0,0.03006327]
[1731719952079,0.08947509,91281.0,91261.0,0.392]
[1731719952080,0.12429241,91277.0,91261.0,0.392]
[1731719952280,0.3608,91272.0,91262.0,0.02210434]
[1731719952486,0.3608,91272.0,91262.0,0.00797377]
[1731719952689,0.49169515,91272.0,91261.0,0.392]
[1731719952886,0.49169515,91272.0,91261.0,0.0312]
[1731719953289,0.13089515,91268.0,91262.0,0.01712189]
[1731719953487,0.13089515,91268.0,91261.0,0.0312]
[1731719953488,0.08824,91267.0,91263.0,0.01712189]
[1731719953695,0.08824,91267.0,91264.0,0.01712189]
[1731719953897,0.08824,91267.0,91265.0,0.01712189]
[1731719954096,0.08824,91267.0,91261.0,0.0312]
[1731719954097,0.08824,91267.0,91266.0,0.01712189]
[1731719954498,0.08824,91267.0,91256.0,0.32459375]
[1731719954697,0.3608,91264.0,91257.0,0.02202169]
[1731719954896,0.3608,91264.0,91258.0,0.02202169]
[1731719955086,0.3608,91264.0,91259.0,0.01712193]
[1731719955286,0.3608,91264.0,91260.0,0.01712193]
[1731719955487,0.3608,91264.0,91256.0,9.335e-05]
[1731719955692,0.12429241,91260.0,91256.0,9.335e-05]
[1731719955892,0.0639,91259.0,91256.0,9.335e-05]
[1731719956791,0.32876,91258.0,91239.0,0.0051]
[1731719956990,0.32876,91258.0,91213.0,0.12429241]
[1731719956991,0.3608,91240.0,91227.0,0.3296004]
[1731719957192,0.3608,91240.0,91228.0,0.3245004]
[1731719957193,0.12054,91239.0,91228.0,0.3245004]
[1731719957395,0.12429241,91235.0,91223.0,0.3608]
[1731719957588,0.12429241,91235.0,91224.0,0.03687398]
[1731719957786,0.12429241,91235.0,91219.0,0.0311]
[1731719957787,0.00013958,91234.0,91225.0,0.04453397]
[1731719957992,0.00013958,91234.0,91226.0,0.04453397]
[1731719958197,0.00013958,91234.0,91227.0,0.01712845]
[1731719958401,0.00013958,91234.0,91228.0,0.01712845]
[1731719958594,0.00013958,91234.0,91229.0,0.01712845]
[1731719958793,0.00013958,91234.0,91230.0,0.01712845]
[1731719959005,0.00013958,91234.0,91221.0,0.4000364]
[1731719959205,0.00013958,91234.0,91222.0,0.04453545]
[1731719959401,0.00013958,91234.0,91221.0,0.4000364]
[1731719959402,0.00013958,91234.0,91223.0,0.01712902]
[1731719959600,0.00013958,91234.0,91224.0,0.01712902]
[1731719959792,0.00013958,91234.0,91221.0,0.3608]
[1731719959793,0.00013958,91234.0,91225.0,0.01712902]
[1731719959989,0.00013958,91234.0,91221.0,0.3608]
[1731719959990,0.00013958,91234.0,91226.0,0.01712902]
[1731719960194,0.00013958,91234.0,91227.0,0.01712902]
[1731719960394,0.00013958,91234.0,91210.0,0.03826334]
[1731719960395,0.48509241,91228.0,91210.0,0.03826334]
[1731719960603,0.3608,91216.0,91211.0,0.0573636]
[1731719960795,0.08824,91215.0,91212.0,0.04453668]
[1731719960995,0.08824,91215.0,91213.0,0.01712949]
[1731719961203,0.08824,91215.0,91205.0,0.02192102]
[1731719961204,0.08824,91215.0,91214.0,0.01712949]
[1731719961599,0.12154,91215.0,91214.0,0.01712949]
[1731719963105,0.12154,91215.0,91214.0,0.01713182]
[1731719963300,0.12154,91215.0,91204.0,0.0302]
[1731719963499,0.12154,91215.0,91205.0,0.01713186]
[1731719963806,0.12154,91215.0,91206.0,0.01713186]
[1731719964106,0.12154,91215.0,91204.0,0.0302]
[1731719964107,0.07261781,91215.0,91207.0,0.01713186]
[1731719964308,0.07261781,91215.0,91208.0,0.01713186]
[1731719964309,0.08828,91214.0,91208.0,0.01713186]
[1731719964507,0.08828,91214.0,91209.0,0.01713186]
[1731719964695,0.08828,91214.0,91210.0,0.01713186]
[1731719964895,0.08828,91214.0,91211.0,0.01713186]
[1731719965106,0.07261781,91215.0,91204.0,0.0302]
[1731719965414,0.08828,91214.0,91205.0,0.01713186]
[1731719965704,0.08828,91214.0,91206.0,0.01713186]
[1731719965906,0.08828,91214.0,91207.0,0.01713186]
[1731719966102,0.08828,91214.0,91208.0,0.01713186]
[1731719966302,0.08828,91214.0,91204.0,0.0302]
[1731719966303,0.08828,91214.0,91209.0,0.01713186]
[1731719966501,0.08828,91214.0,91210.0,0.01713186]
[1731719966704,0.08828,91214.0,91204.0,0.0302]
[1731719966908,0.0333,91215.0,91205.0,0.01713186]
[1731719967104,0.0051,91222.0,91204.0,0.0302]
[1731719967105,0.08828,91214.0,91210.0,0.3608]
[1731719967425,0.08828,91213.0,91210.0,0.3608]
[1731719967711,0.12429241,91225.0,91211.0,0.01713082]
[1731719967712,0.08828,91212.0,91211.0,0.01713082]
[1731719968512,0.08828,91212.0,91210.0,0.3608]
[1731719970500,0.0051,91222.0,91210.0,0.3608]
[1731719970705,0.08828,91221.0,91210.0,0.3608]
[1731719970905,0.08828,91221.0,91211.0,0.01713081]
[1731719971110,0.08828,91221.0,91204.0,0.0302]
[1731719971111,0.3608,91219.0,91204.0,0.0302]
[1731719971300,0.3608,91219.0,91205.0,0.02201975]
[1731719971497,0.3608,91219.0,91204.0,0.0302]
[1731719971498,0.12429241,91217.0,91206.0,0.02191379]
[1731719971701,0.12429241,91217.0,91207.0,0.02191379]
[1731719972005,0.12429241,91209.0,91204.0,0.0302]
[1731719972311,0.08828,91208.0,91204.0,0.0302]
[1731719975403,0.12429241,91206.0,91201.0,0.00012168]
[1731719975602,0.3608,91202.0,91201.0,0.00012168]
[1731719976226,0.68976,91202.0,91201.0,0.00012168]
[1731719977502,0.68976,91202.0,91181.0,0.0051]
[1731719977712,0.12429241,91183.0,91179.0,0.0316]
[1731719978014,0.08828,91182.0,91179.0,0.0316]
[1731719978811,0.08832,91181.0,91179.0,0.0316]
[1731719979016,0.3608,91186.0,91179.0,0.0316]
[1731719979320,0.08832,91185.0,91179.0,0.0316]
[1731719983813,0.3608,91186.0,91179.0,0.0316]
[1731719984019,0.08652,91185.0,91179.0,0.0316]
[1731719984622,0.08652,91184.0,91179.0,0.0316]
[1731719987523,0.0051,91192.0,91183.0,0.3608]
[1731719987727,0.08652,91195.0,91183.0,0.3608]
[1731719987923,0.08652,91195.0,91184.0,0.0641]
[1731719988125,0.12429241,91193.0,91184.0,0.4249]
[1731719988329,0.08652,91195.0,91179.0,0.0316]
[1731719988330,0.12429241,91185.0,91179.0,0.0316]
[1731719988526,0.08652,91184.0,91179.0,0.0316]
[1731719992923,0.1250152,91184.0,91179.0,0.0316]
[1731719995630,0.1250152,91184.0,91172.0,0.3608]
[1731719995825,0.1582152,91184.0,91172.0,0.3608]
[1731719996226,0.08652,91184.0,91172.0,0.3608]
[1731719997223,0.3608,91187.0,91172.0,0.39951245]
[1731719997435,0.08652,91186.0,91177.0,0.19619836]
[1731719998030,0.3608,91187.0,91177.0,0.19619836]
[1731719998229,0.3608,91187.0,91180.0,0.55699836]
[1731719998537,0.08652,91189.0,91185.0,0.19619836]
[1731719998726,0.08652,91189.0,91186.0,0.0313]
[1731719999032,0.08652,91189.0,91186.0,0.0628]
[1731719999628,0.13089515,91194.0,91186.0,0.0628]
[1731719999829,0.13089515,91195.0,91186.0,0.0628]
[1731720000035,0.21741515,91194.0,91186.0,0.0628]
[1731720000231,0.13089515,91194.0,91186.0,0.0628]
[1731720000436,0.13599515,91200.0,91191.0,0.48509241]
[1731720000733,0.13089515,91205.0,91199.0,0.3608]
[1731720000932,0.21741515,91206.0,91199.0,0.3608]
[1731720001138,0.12429241,91200.0,91191.0,0.3618]
[1731720001337,0.12429241,91200.0,91186.0,0.0628]
[1731720001338,0.48509241,91192.0,91174.0,0.55699836]
[1731720001527,0.12429241,91183.0,91175.0,0.01408569]
[1731720001840,0.3608,91192.0,91174.0,0.3911]
[1731720001841,0.21771039,91186.0,91176.0,0.01408569]
[1731720002025,0.08652,91186.0,91177.0,0.01408569]
[1731720002227,0.13119039,91188.0,91178.0,0.01408569]
[1731720002430,0.13119039,91188.0,91174.0,0.3911]
[1731720002431,0.0051,91194.0,91186.0,0.19619836]
[1731720002635,0.13119039,91196.0,91193.0,0.3608]
[1731720002938,0.13119039,91205.0,91195.0,0.19619836]
[1731720003133,7.842e-05,91207.0,91204.0,0.3608]
[1731720003326,7.842e-05,91207.0,91204.0,0.55699836]
[1731720003938,7.842e-05,91207.0,91205.0,0.19619836]
[1731720004127,7.842e-05,91207.0,91206.0,0.58909836]
[1731720004326,7.842e-05,91207.0,91206.0,0.58901042]
[1731720004827,4.2e-07,91207.0,91206.0,0.98235497]
[1731720005024,0.13119039,91226.0,91206.0,0.6929]
[1731720005229,0.13119039,91232.0,91220.0,0.3608]
[1731720005639,0.08652,91233.0,91220.0,0.3608]
[1731720005640,0.21771039,91233.0,91220.0,0.3608]
[1731720006139,0.00010306,91230.0,91220.0,0.3608]
[1731720007134,0.00010306,91230.0,91220.0,0.40007845]
[1731720007725,0.00010306,91230.0,91228.0,0.3608]
[1731720008140,0.00010306,91230.0,91229.0,0.35894]
[1731720008332,0.00010306,91230.0,91229.0,0.39114]
[1731720011430,0.00010306,91230.0,91229.0,0.0623]
[1731720011630,0.00010306,91230.0,91229.0,0.39114]
[1731720012140,0.00194,91253.0,91229.0,0.39114]
[1731720012141,0.08648,91251.0,91229.0,0.39114]
[1731720012340,0.08648,91251.0,91247.0,0.3608]
[1731720012929,0.00011322,91250.0,91247.0,0.3608]
[1731720013429,0.00011322,91250.0,91229.0,0.0322]
[1731720013633,0.12429241,91242.0,91230.0,0.00472764]
[1731720013832,0.0315,91241.0,91229.0,0.0322]
[1731720014433,0.12440563,91250.0,91229.0,0.0322]
[1731720015037,0.12440563,91250.0,91230.0,0.00472648]
[1731720015243,0.12440563,91250.0,91231.0,0.00472648]
[1731720015437,0.12440563,91250.0,91229.0,0.0637]
[1731720015438,0.12440563,91250.0,91236.0,0.3608]
[1731720015642,0.48520563,91250.0,91237.0,0.00472648]
[1731720015843,0.08652,91249.0,91236.0,0.3608]
[1731720016838,0.48584563,91250.0,91236.0,0.3608]
[1731720017047,0.08652,91249.0,91236.0,0.3608]
[1731720017342,0.12429241,91248.0,91236.0,0.3608]
[1731720017645,0.15449241,91248.0,91236.0,0.3608]
[1731720019132,0.0302,91248.0,91236.0,0.3608]
[1731720020740,0.0302,91248.0,91231.0,0.0051]
[1731720020741,0.3608,91239.0,91231.0,0.0051]
[1731720020940,0.3608,91241.0,91232.0,0.00478875]
[1731720021139,0.0326,91247.0,91229.0,0.0373]
[1731720021341,0.0326,91247.0,91229.0,0.0322]
[1731720021544,0.3608,91238.0,91226.0,0.3608]
[1731720021736,0.3608,91238.0,91227.0,0.00485836]
[1731720021737,0.08652,91237.0,91227.0,0.00485836]
[1731720021936,0.08652,91237.0,91226.0,0.3608]
[1731720022246,0.0305,91236.0,91226.0,0.3608]
[1731720024741,0.12429241,91234.0,91224.0,0.0051]
[1731720024948,0.3608,91227.0,91221.0,0.00010221]
[1731720025152,0.0329,91226.0,91221.0,0.00010221]
[1731720025450,0.08652,91225.0,91221.0,0.00010221]
[1731720026443,0.0318,91224.0,91221.0,0.00010221]
[1731720026646,0.0318,91224.0,91221.0,1.782e-05]
[1731720027045,0.13119039,91222.0,91221.0,1.782e-05]
[1731720027343,0.05329654,91222.0,91221.0,1.782e-05]
[1731720027541,0.38217654,91222.0,91213.0,0.0051]
[1731720027759,0.48509241,91214.0,91206.0,0.0051]
[1731720028052,0.48509241,91214.0,91187.0,0.0311]
[1731720028053,0.12429241,91207.0,91199.0,0.0051]
[1731720028259,0.0311,91206.0,91193.0,0.0051]
[1731720028451,8.334e-05,91205.0,91196.0,0.00493308]
[1731720028656,8.334e-05,91205.0,91197.0,0.00493308]
[1731720028851,8.334e-05,91205.0,91193.0,0.0051]
[1731720029153,8.334e-05,91205.0,91193.0,0.20119276]
[1731720029360,8.334e-05,91205.0,91194.0,0.19609276]
[1731720030246,8.334e-05,91205.0,91195.0,0.19609276]
[1731720030442,0.3608,91196.0,91193.0,0.20119276]
[1731720030647,0.08652,91195.0,91190.0,0.19609276]
[1731720030849,0.08652,91195.0,91191.0,0.19609276]
[1731720031045,0.08652,91195.0,91190.0,0.19609276]
[1731720031258,0.08652,91195.0,91189.0,0.19609276]
[1731720031556,0.08652,91195.0,91190.0,0.19609276]
[1731720032251,0.08652,91195.0,91191.0,0.19609276]
[1731720032446,0.44732,91195.0,91192.0,0.0171347]
[1731720032754,0.44732,91195.0,91187.0,0.0311]
[1731720032947,0.44732,91195.0,91188.0,0.01713502]
[1731720033251,0.44732,91195.0,91189.0,0.01713502]
[1731720033452,0.08652,91195.0,91190.0,0.01713506]
[1731720033657,0.36136001,91204.0,91191.0,0.01713506]
[1731720033957,0.08652,91203.0,91192.0,0.01713506]
[1731720034149,0.08652,91203.0,91193.0,0.01713506]
[1731720034351,0.08652,91203.0,91194.0,0.01713426]
[1731720034654,0.08652,91203.0,91195.0,0.01713426]
[1731720034859,0.08652,91203.0,91196.0,0.01713426]
[1731720035160,0.08652,91203.0,91197.0,0.01713426]
[1731720035454,0.08652,91203.0,91198.0,0.01713426]
[1731720035764,0.08652,91203.0,91190.0,0.39898763]
[1731720035765,0.08652,91203.0,91199.0,0.01713385]
[1731720035953,0.08652,91203.0,91192.0,0.19609276]
[1731720036149,0.08652,91203.0,91193.0,0.02202061]
[1731720036353,0.08652,91203.0,91194.0,0.01713385]
[1731720036654,0.08652,91203.0,91195.0,0.01713385]
[1731720036854,0.08652,91203.0,91196.0,0.01713385]
[1731720037158,0.08652,91203.0,91190.0,0.39898763]
[1731720037159,0.08652,91203.0,91197.0,0.01713385]
[1731720037360,0.08652,91203.0,91198.0,0.01713385]
[1731720037556,0.08652,91203.0,91190.0,0.39898763]
[1731720037752,0.08652,91203.0,91191.0,0.02201128]
[1731720037948,0.08652,91203.0,91190.0,0.39898763]
[1731720037949,0.08652,91203.0,91192.0,0.02201128]
[1731720038154,0.08652,91203.0,91193.0,0.02201128]
[1731720038366,0.08652,91203.0,91194.0,0.01713385]
[1731720038659,0.08652,91203.0,91190.0,0.39898763]
[1731720038660,0.08652,91203.0,91195.0,0.01713385]
[1731720038962,0.08652,91203.0,91196.0,0.01713385]
[1731720039163,0.3608,91204.0,91197.0,0.01713385]
[1731720039359,0.08652,91203.0,91202.0,0.3608]
[1731720039565,8.334e-05,91205.0,91202.0,0.37793266]
[1731720039758,8.334e-05,91205.0,91203.0,0.01713266]
[1731720039958,8.334e-05,91205.0,91204.0,0.01713266]
[1731720040161,8.334e-05,91205.0,91204.0,0.02201979]
[1731720040655,8.334e-05,91205.0,91204.0,0.00488713]
[1731720040862,8.334e-05,91205.0,91202.0,0.3608]
[1731720041761,8.334e-05,91205.0,91202.0,0.39886394]
[1731720041961,8.334e-05,91205.0,91203.0,0.19542702]
[1731720042156,8.334e-05,91205.0,91204.0,0.55622702]
[1731720042365,8.334e-05,91205.0,91204.0,0.3608]
[1731720043059,8.334e-05,91205.0,91204.0,0.3656522]
[1731720044566,8.334e-05,91205.0,91204.0,0.69043293]
[1731720044766,8.334e-05,91205.0,91204.0,1.01614464]
[1731720044968,8.334e-05,91205.0,91204.0,1.37694464]
[1731720045164,8.334e-05,91205.0,91204.0,1.05123293]
[1731720045370,8.334e-05,91205.0,91204.0,0.7216]
[1731720045569,8.334e-05,91205.0,91204.0,0.98239434]
[1731720045772,8.334e-05,91205.0,91204.0,0.7216]
[1731720045964,8.334e-05,91205.0,91204.0,0.98731484]
[1731720046164,0.0324,91222.0,91204.0,0.72652017]
[1731720046367,0.3608,91214.0,91207.0,0.19564804]
[1731720046566,0.3608,91214.0,91204.0,0.19564804]
[1731720046865,0.3608,91206.0,91200.0,0.19564804]
[1731720047369,0.3608,91206.0,91201.0,0.19564804]
[1731720047370,9.402e-05,91205.0,91201.0,0.19564804]
[1731720047571,9.402e-05,91205.0,91201.0,0.01713356]
[1731720047772,9.402e-05,91205.0,91199.0,0.19564804]
[1731720048077,9.402e-05,91205.0,91200.0,0.01713379]
[1731720048267,9.402e-05,91205.0,91201.0,0.01713379]
[1731720048468,9.402e-05,91205.0,91202.0,0.01713379]
[1731720048665,9.402e-05,91205.0,91203.0,0.01713379]
[1731720048975,9.402e-05,91205.0,91204.0,0.01713379]
[1731720049167,0.03159402,91205.0,91204.0,0.01713379]
[1731720049362,0.03159402,91205.0,91199.0,0.19564804]
[1731720049569,0.03159402,91205.0,91200.0,0.01713388]
[1731720049869,0.12429241,91204.0,91197.0,0.19564804]